fUSD/lending_fUSD_20260630
["ID","MTS","AMOUNT","RATE_DAILY","PERIOD"]
[426742042,1782774653000,-238.0,0.0002859,30]
[426742043,1782774653000,-154.0,0.0002859,30]
[426742047,1782774653000,-52030.1630378,0.00028605,2]
[426742045,1782774653000,-536.0,0.0002859,30]
[426742048,1782774653000,-228182.37394775,0.00028605,2]
[426742044,1782774653000,-210.0,0.0002859,30]
[426742037,1782774653000,-252.0,0.00028588,30]
[426742018,1782774653000,-505.0,0.00028165,13]
[426741995,1782774653000,-154.77,0.00027885,30]
[426742016,1782774653000,-154.84,0.0002813,7]
[426741996,1782774653000,-155.8863578,0.00027888,2]
[426741991,1782774653000,-335.77,0.00027872,2]
[426741993,1782774653000,-228.21,0.00027872,2]
[426741994,1782774653000,-230.99,0.00027872,2]
[426742001,1782774653000,-150.0,0.00027973,2]
[426741992,1782774653000,-337.82,0.00027872,2]
[426742003,1782774653000,-586.39896495,0.00028,5]
[426742002,1782774653000,-154.77,0.00027977,30]
[426741997,1782774653000,-2420.0,0.000279,10]
[426741999,1782774653000,-154.77,0.00027916,2]
[426741998,1782774653000,-900.0,0.000279,10]
[426742008,1782774653000,-337.82,0.00028033,30]
[426742005,1782774653000,-216.58458871,0.00028,7]
[426742021,1782774653000,-207.57,0.00028194,7]
[426742010,1782774653000,-230.99,0.00028033,30]
[426742025,1782774653000,-326.59,0.000282,7]
[426742027,1782774653000,-232.16,0.00028314,7]
[426742009,1782774653000,-228.21,0.00028033,30]
[426742012,1782774653000,-154.77,0.00028068,30]
[426742011,1782774653000,-154.77,0.00028038,7]
[426742017,1782774653000,-769.39284705,0.00028143,2]
[426742004,1782774653000,-216.58458871,0.00028,10]
[426742006,1782774653000,-154.77,0.00028007,2]
[426742007,1782774653000,-335.77,0.00028033,30]
[426742015,1782774653000,-154.95,0.0002813,7]
[426742013,1782774653000,-232.16,0.00028085,2]
[426742014,1782774653000,-154.77,0.00028099,2]
[426742057,1782774654000,-21.99485843,0.00027397,10]
[426742050,1782774654000,-1462.091163,0.00028605,2]
[426742049,1782774654000,-3309.14045596,0.00028605,2]
[426742051,1782774654000,-299.33995896,0.00028605,2]
[426742053,1782774654000,-462.43684295,0.00027397,2]
[426742052,1782774654000,-638.52461305,0.00027397,2]
[426742054,1782774654000,-10072.65165705,0.00027397,10]
[426742055,1782774654000,-2998.86279036,0.00027397,10]
[426742056,1782774654000,-374.83658851,0.00027397,10]
[426742059,1782774654000,-1100.961456,0.00027397,2]
[426742061,1782774654000,-35897.50280065,0.00028605,2]
[426742058,1782774654000,-323.45410565,0.00027397,10]
[426742067,1782774654000,-46072.19634118,0.0001271,2]
[426742065,1782774654000,-440.88150698,0.0001271,2]
[426742066,1782774654000,-314.55,0.0001271,2]
[426742068,1782774654000,-45732.16984377,0.0001271,2]
[426742063,1782774654000,636.08717282,0.00014352,2]
[426742062,1782774654000,-745.7639135,0.00028605,2]
[426742060,1782774654000,-1100.961456,0.00027397,2]
[426742064,1782774654000,150.0,0.00011847,2]
[426742069,1782774655000,-394.37174345,0.0001271,2]
[426742070,1782774655000,-399.48050875,0.0001271,2]
[426742071,1782774708000,-3203.15418871,0.0001271,2]
[426742072,1782774722000,-3203.15418871,0.0001271,2]
[426742073,1782774734000,-636.08717282,0.0001271,2]
[426742074,1782774748000,-636.08717282,0.0001271,2]
[426742075,1782774749000,300.0,0.000126,4]
[426742078,1782774749000,1200.0,0.000129,4]
[426742077,1782774749000,900.0,0.000128,4]
[426742076,1782774749000,600.0,0.000127,4]
[426742079,1782774813000,-157.38746045,0.0001261,2]
[426742080,1782774866000,-190.79654479,0.00012456,2]
[426742081,1782774879000,-826.88371761,0.00012456,2]
[426742087,1782775196000,-172.5634078,0.00012356,2]
[426742088,1782775250000,-250.0,0.00012406,2]
[426742090,1782775279000,-1885.0,0.00012456,2]
[426742089,1782775279000,-150.0,0.00012431,2]
[426742093,1782775303000,-636.08717282,0.00012456,2]
[426742094,1782775316000,-402.78156478,0.00012456,2]
[426742095,1782775369000,-154.298,0.00012456,2]
[426742096,1782775422000,-344.65918068,0.00012481,2]
[426742098,1782775457000,1089.77936556,0.00012609,3]
[426742097,1782775457000,1089.77936556,0.00012709,3]
[426742099,1782775475000,-500.0,0.00012509,2]
[426742100,1782775476000,1500.0,0.000126,4]
[426742101,1782775476000,3100.0,0.000127,4]
[426742103,1782775477000,6300.0,0.000129,4]
[426742102,1782775477000,4700.0,0.000128,4]
[426742106,1782775494000,150.0,0.00012603,7]
[426742105,1782775494000,13628.51175154,0.00012456,7]
[426742104,1782775494000,150.0,0.00012356,7]
[426742109,1782775495000,13628.51175154,0.00012705,7]
[426742107,1782775495000,150.0,0.00012974,7]
[426742110,1782775495000,150.0,0.00013344,7]
[426742108,1782775495000,702.04463385,0.00012456,7]
[426742111,1782775496000,702.04463385,0.00012705,7]
[426742112,1782775496000,7809.12154216,0.00013079,7]
[426742113,1782775528000,-152.86291187,0.00012508,2]
[426742114,1782775582000,-500.0,0.00012508,2]
[426742115,1782775620000,1300.0,0.000126,4]
[426742116,1782775622000,2600.0,0.000127,4]
[426742117,1782775635000,-150.0,0.00012507,2]
[426742118,1782775635000,4000.0,0.000128,4]
[426742119,1782775635000,5300.0,0.000129,4]
[426742121,1782775679000,200.0,0.00012657,7]
[426742122,1782775680000,200.0,0.00012657,7]
[426742123,1782775681000,200.0,0.00012657,7]
[426742124,1782775682000,200.0,0.00012657,7]
[426742125,1782775683000,200.0,0.00012657,7]
[426742126,1782775685000,200.0,0.00012657,7]
[426742127,1782775686000,200.0,0.00012657,7]
[426742128,1782775687000,200.0,0.00012657,7]
[426742129,1782775688000,298.07,0.00012657,7]
[426742130,1782775774000,-500.0,0.00012508,2]
[426742131,1782775774000,-500.0,0.00012508,2]
[426742132,1782775774000,-500.0,0.00012508,2]
[426742134,1782775774000,-500.0,0.00012508,2]
[426742136,1782775774000,-500.0,0.00012508,2]
[426742133,1782775774000,-644.58144122,0.00012508,2]
[426742138,1782775774000,-500.0,0.00012508,2]
[426742135,1782775774000,-500.0,0.00012508,2]
[426742140,1782775774000,-162.48848708,0.0001251,2]
[426742139,1782775774000,-500.0,0.00012508,2]
[426742141,1782775774000,-102.5484957,0.0001251,2]
[426742137,1782775774000,-500.0,0.00012508,2]
[426742158,1782775832000,-14340.97026175,0.0001251,2]
[426742159,1782775832000,-43544.6668711,0.0001251,2]
[426742157,1782775832000,-18967.33877092,0.0001251,2]
[426742155,1782775832000,-260.99829995,0.0001251,2]
[426742156,1782775832000,-276.17817046,0.0001251,2]
[426742166,1782775838000,-11660.96843879,0.0001241,2]
[426742169,1782775838000,-405.64579066,0.0001241,2]
[426742168,1782775838000,-3203.15418871,0.0001241,2]
[426742172,1782775838000,-1941.9352568,0.0001241,2]
[426742170,1782775838000,-1148.74526733,0.0001241,2]
[426742171,1782775838000,-1799.82502744,0.0001241,2]
[426742178,1782775840000,-5421.21537712,0.0001241,2]
[426742177,1782775840000,-0.25395906,0.0001241,2]
[426742182,1782775843000,-151.23717518,0.000125,2]
[426742184,1782775843000,-357.21887264,0.00012509,2]
[426742193,1782775843000,-546.47870989,0.00012509,2]
[426742181,1782775843000,-434.37091709,0.0001241,2]
[426742185,1782775843000,-171.20591303,0.00012509,2]
[426742183,1782775843000,-500.0,0.00012509,2]
[426742186,1782775843000,-247.65369025,0.00012509,2]
[426742194,1782775843000,-500.0,0.00012509,2]
[426742188,1782775843000,-500.0,0.00012509,2]
[426742189,1782775843000,-250.50069615,0.00012509,2]
[426742190,1782775843000,-500.0,0.00012509,2]
[426742191,1782775843000,-500.0,0.00012509,2]
[426742192,1782775843000,-500.0,0.00012509,2]
[426742195,1782775843000,-21.07070247,0.00012509,2]
[426742187,1782775843000,-500.0,0.00012509,2]
[426742199,1782775844000,-1036.65328089,0.0001251,2]
[426742198,1782775844000,-20413.03833482,0.0001251,2]
[426742197,1782775844000,-500.0,0.00012509,2]
[426742196,1782775844000,-606.10501322,0.00012509,2]
[426742203,1782776050000,-3564.549,0.0001226,2]
[426742204,1782776104000,-154.298,0.0001226,2]
[426742206,1782776104000,150.0,0.00012758,7]
[426742205,1782776104000,150.0,0.00012508,7]
[426742207,1782776157000,-172.5634078,0.00012309,2]
[426742209,1782776210000,-298.5,0.00012309,2]
[426742210,1782776250000,370.12,0.00011959,2]
[426742211,1782776263000,-209.96816458,0.0001231,2]
[426742212,1782776270000,200.0,0.00011842,2]
[426742213,1782776273000,200.0,0.00011842,2]
[426742214,1782776275000,200.0,0.00011842,2]
[426742215,1782776277000,200.0,0.00011842,2]
[426742216,1782776280000,200.0,0.00011842,2]
[426742217,1782776282000,200.0,0.00011842,2]
[426742218,1782776284000,200.0,0.00011842,2]
[426742219,1782776287000,200.0,0.00011842,2]
[426742221,1782776317000,-250.0,0.00012359,2]
[426742222,1782776370000,-250.0,0.00012402,2]
[426742223,1782776396000,212.9895332,0.0001226,7]
[426742224,1782776396000,212.9895332,0.00012505,7]
[426742225,1782776397000,212.9895332,0.00012873,7]
[426742226,1782776399000,-150.25,0.00012045,2]
[426742227,1782776423000,-12.31,0.00012045,2]
[426742228,1782776424000,160.25,0.00011978,2]
[426742229,1782776476000,-1583.71,0.00012052,2]
[426742231,1782776478000,-150.0,0.00012167,2]
[426742230,1782776478000,-216.58458871,0.00012052,2]
[426742232,1782776530000,-166.75,0.00012282,2]
[426742233,1782776540000,166.66,0.0001126,2]
[426742234,1782776540000,166.66,0.00011497,2]
[426742236,1782776540000,166.66,0.00011971,2]
[426742235,1782776540000,166.66,0.00011734,2]
[426742238,1782776569000,381.63458871,0.00011753,2]
[426742237,1782776569000,851.77541129,0.00011753,2]
[426742239,1782776611000,243.21,0.00011722,3]
[426742240,1782776692000,166.43,0.00011615,2]
[426742241,1782776718000,150.0,0.00011561,2]
[426742242,1782776720000,1000.0,0.00011561,2]
[426742243,1782776830000,600.0,0.000127,4]
[426742244,1782776832000,1300.0,0.000128,4]
[426742245,1782776835000,2000.0,0.000129,4]
[426742246,1782776870000,200.0,0.00011774,2]
[426742247,1782776887000,-166.66,0.00012208,2]
[426742248,1782776941000,-166.43,0.0001226,2]
[426742249,1782776994000,-1583.71,0.00012353,2]
[426742250,1782776995000,1100.24,0.0001155,2]
[426742268,1782777031000,-500.0,0.00012407,2]
[426742269,1782777031000,-500.0,0.00012407,2]
[426742270,1782777031000,-500.0,0.00012407,2]
[426742271,1782777031000,-500.0,0.00012407,2]
[426742274,1782777031000,-500.0,0.00012407,2]
[426742282,1782777031000,-333.7764086,0.00012408,2]
[426742279,1782777031000,-631.13586418,0.00012407,2]
[426742284,1782777031000,-154.298,0.00012409,2]
[426742276,1782777031000,-500.0,0.00012407,2]
[426742278,1782777031000,-296.54903417,0.00012407,2]
[426742273,1782777031000,-500.0,0.00012407,2]
[426742266,1782777031000,-247.33750729,0.00012407,2]
[426742264,1782777031000,-500.0,0.00012407,2]
[426742265,1782777031000,-500.0,0.00012407,2]
[426742263,1782777031000,-306.97446578,0.00012407,2]
[426742262,1782777031000,-500.0,0.00012407,2]
[426742261,1782777031000,-617.07828679,0.00012407,2]
[426742260,1782777031000,-500.0,0.00012407,2]
[426742258,1782777031000,-500.19170123,0.00012407,2]
[426742257,1782777031000,-500.0,0.00012404,2]
[426742256,1782777031000,-39062.47977217,0.000124,2]
[426742255,1782777031000,-1821.14585091,0.0001238,2]
[426742259,1782777031000,-500.0,0.00012407,2]
[426742254,1782777031000,-10000.0,0.000123,2]
[426742280,1782777031000,-500.0,0.00012407,2]
[426742267,1782777031000,-383.66736799,0.00012407,2]
[426742281,1782777031000,-353.16483264,0.00012407,2]
[426742272,1782777031000,-470.77879764,0.00012407,2]
[426742331,1782777031000,-500.0,0.00012475,2]
[426742343,1782777031000,-46027.17266564,0.00012476,2]
[426742341,1782777031000,-261996.37167694,0.00012476,2]
[426742348,1782777031000,-1466.16851797,0.00012476,2]
[426742346,1782777031000,-15078.41141391,0.00012476,2]
[426742338,1782777031000,-20835.3649207,0.00012476,2]
[426742336,1782777031000,-150.0,0.00012476,2]
[426742334,1782777031000,-250.05321084,0.00012475,2]
[426742322,1782777031000,-500.0,0.00012475,2]
[426742286,1782777031000,-3228.639,0.00012409,2]
[426742324,1782777031000,-500.0,0.00012475,2]
[426742329,1782777031000,-225.35048731,0.00012475,2]
[426742327,1782777031000,-500.0,0.00012475,2]
[426742317,1782777031000,-215.5481884,0.00012475,2]
[426742315,1782777031000,-269.84413912,0.00012475,2]
[426742313,1782777031000,-500.0,0.00012475,2]
[426742310,1782777031000,-500.0,0.00012475,2]
[426742308,1782777031000,-309.38784195,0.00012475,2]
[426742304,1782777031000,-163.87,0.00012445,2]
[426742297,1782777031000,-166.0554747,0.00012431,2]
[426742299,1782777031000,-160.0,0.00012445,2]
[426742295,1782777031000,-216.58458871,0.00012419,2]
[426742302,1782777031000,-166.66,0.00012445,2]
[426742306,1782777031000,-177.08377207,0.00012447,2]
[426742290,1782777031000,-304.0,0.0001241,2]
[426742293,1782777031000,-150.0,0.00012412,2]
[426742288,1782777031000,-352.0,0.0001241,2]
[426742320,1782777031000,-500.0,0.00012475,2]
[426742380,1782777032000,-1849.92141694,0.00012476,2]
[426742375,1782777032000,-2847.70602141,0.00012476,2]
[426742373,1782777032000,-4405.87112718,0.00012476,2]
[426742389,1782777032000,-858.64724402,0.00012476,2]
[426742378,1782777032000,-8557.4387964,0.00012476,2]
[426742384,1782777032000,-340.48204018,0.00012476,2]
[426742387,1782777032000,-1259.46314763,0.00012476,2]
[426742381,1782777032000,-1281.16582259,0.00012476,2]
[426742533,1782777047000,-500.0,0.00012407,2]
[426742534,1782777047000,-1897.56019118,0.00012476,2]
[426742535,1782777047000,-1754.58406941,0.00012476,2]
[426742539,1782777047000,-327.60092236,0.00012476,2]
[426742536,1782777047000,-328.06145096,0.00012476,2]
[426742537,1782777047000,-596.77990977,0.00012476,2]
[426742540,1782777047000,-420355.75587721,0.00012476,2]
[426742538,1782777047000,-550.74,0.00012476,2]
[426742583,1782777048000,-150.0,0.00013272,2]
[426742585,1782777048000,-166.75,0.00013295,2]
[426742581,1782777048000,-212.9895332,0.00013241,7]
[426742580,1782777048000,-1831.0,0.00013205,2]
[426742578,1782777048000,-150.0,0.00013149,2]
[426742579,1782777048000,-516.54482683,0.00013183,2]
[426742586,1782777048000,-500.0,0.00013302,2]
[426742577,1782777048000,-150.0,0.00013133,7]
[426742576,1782777048000,-160.0,0.00013106,2]
[426742574,1782777048000,-5819.39020938,0.00013079,7]
[426742569,1782777048000,-166.43,0.00012906,2]
[426742582,1782777048000,-1583.71,0.00013257,2]
[426742575,1782777048000,-702.04463385,0.00013079,7]
[426742584,1782777048000,-865.41676728,0.00013295,2]
[426742567,1782777048000,-1000.0,0.00012872,2]
[426742591,1782777048000,-284.99075016,0.00013429,2]
[426742592,1782777048000,-150.14924506,0.00013429,2]
[426742598,1782777048000,-166.43,0.00013551,2]
[426742588,1782777048000,-151.23717518,0.00013376,2]
[426742596,1782777048000,-250.0,0.00013509,2]
[426742589,1782777048000,-382434.47,0.00013386,2]
[426742597,1782777048000,-150.0,0.00013509,7]
[426742590,1782777048000,-240.0,0.00013395,2]
[426742595,1782777048000,-702.04463385,0.00013452,7]
[426742593,1782777048000,-580.57379718,0.00013429,2]
[426742594,1782777048000,-13628.51175154,0.00013452,7]
[426742599,1782777048000,-500.0,0.00013576,2]
[426742600,1782777048000,-1821.14585091,0.00013598,2]
[426742587,1782777048000,-279.79824217,0.00013344,2]
[426742570,1782777048000,-1583.71,0.00012956,2]
[426742601,1782777048000,-158.65,0.0001363,2]
[426742562,1782777048000,-168.445108,0.0001271,2]
[426742541,1782777048000,-500.0,0.0001248,2]
[426742544,1782777048000,-169.8925337,0.0001248,2]
[426742542,1782777048000,-169.8925337,0.0001248,2]
[426742543,1782777048000,-169.8925337,0.0001248,2]
[426742546,1782777048000,-22564.2081873,0.00012491,2]
[426742548,1782777048000,-15160.0,0.00012493,2]
[426742545,1782777048000,-178.5806066,0.00012484,2]
[426742549,1782777048000,-227.12409934,0.00012499,2]
[426742547,1782777048000,-30510.0,0.00012493,2]
[426742550,1782777048000,-41605.67620606,0.00012499,2]
[426742551,1782777048000,-151.0,0.00012507,2]
[426742552,1782777048000,-151.0,0.00012507,2]
[426742559,1782777048000,-1583.71,0.00012654,2]
[426742568,1782777048000,-150.0,0.00012903,2]
[426742554,1782777048000,-1617.55469369,0.00012509,2]
[426742558,1782777048000,-150.0,0.00012535,2]
[426742555,1782777048000,-4905.7910706,0.00012509,2]
[426742556,1782777048000,-1625.65312541,0.00012509,2]
[426742553,1782777048000,-151.0,0.00012507,2]
[426742560,1782777048000,-150.0,0.00012658,2]
[426742561,1782777048000,-292.80619014,0.00012683,2]
[426742563,1782777048000,-500.0,0.00012754,2]
[426742571,1782777048000,-1821.14585091,0.00012989,2]
[426742572,1782777048000,-150.0,0.00013026,2]
[426742565,1782777048000,-160.0,0.00012767,2]
[426742566,1782777048000,-150.0,0.00012781,2]
[426742573,1782777048000,-500.0,0.00013028,2]
[426742564,1782777048000,-1000.0,0.00012757,2]
[426742557,1782777048000,-2001.98680546,0.00012509,2]
[426742606,1782777048000,-4570.81,0.00013671,2]
[426742624,1782777048000,-500.0,0.00013698,2]
[426742604,1782777048000,-500.0,0.0001364,2]
[426742635,1782777048000,-557.35,0.00013698,2]
[426742628,1782777048000,-557.35,0.00013698,2]
[426742640,1782777048000,-500.0,0.00013698,2]
[426742641,1782777048000,-500.0,0.00013698,2]
[426742644,1782777048000,-518.16800403,0.00013698,2]
[426742643,1782777048000,-500.0,0.00013698,2]
[426742646,1782777048000,-820.01,0.00013698,2]
[426742651,1782777048000,-820.01,0.00013698,2]
[426742647,1782777048000,-820.01,0.00013698,2]
[426742645,1782777048000,-820.01,0.00013698,2]
[426742642,1782777048000,-500.0,0.00013698,2]
[426742650,1782777048000,-820.01,0.00013698,2]
[426742652,1782777048000,-820.01,0.00013698,2]
[426742637,1782777048000,-500.0,0.00013698,2]
[426742649,1782777048000,-820.01,0.00013698,2]
[426742653,1782777048000,-820.01,0.00013698,2]
[426742654,1782777048000,-820.01,0.00013698,2]
[426742656,1782777048000,-820.01,0.00013698,2]
[426742655,1782777048000,-820.01,0.00013698,2]
[426742658,1782777048000,-500.0,0.00013698,2]
[426742657,1782777048000,-500.0,0.00013698,2]
[426742663,1782777048000,-500.0,0.00013698,2]
[426742660,1782777048000,-500.0,0.00013698,2]
[426742664,1782777048000,-500.0,0.00013698,2]
[426742662,1782777048000,-500.0,0.00013698,2]
[426742661,1782777048000,-500.0,0.00013698,2]
[426742665,1782777048000,-500.0,0.00013698,2]
[426742605,1782777048000,-300.0,0.0001364,2]
[426742648,1782777048000,-820.01,0.00013698,2]
[426742638,1782777048000,-500.0,0.00013698,2]
[426742659,1782777048000,-294.12807726,0.00013698,2]
[426742632,1782777048000,-557.35,0.00013698,2]
[426742630,1782777048000,-557.35,0.00013698,2]
[426742603,1782777048000,-349.0,0.0001364,2]
[426742602,1782777048000,-193.0,0.0001364,2]
[426742613,1782777048000,-500.0,0.00013698,2]
[426742612,1782777048000,-500.0,0.00013698,2]
[426742610,1782777048000,-500.0,0.00013698,2]
[426742611,1782777048000,-512.30421207,0.00013698,2]
[426742608,1782777048000,-500.0,0.00013698,2]
[426742609,1782777048000,-500.0,0.00013698,2]
[426742626,1782777048000,-557.35,0.00013698,2]
[426742625,1782777048000,-557.35,0.00013698,2]
[426742615,1782777048000,-500.0,0.00013698,2]
[426742614,1782777048000,-500.0,0.00013698,2]
[426742617,1782777048000,-500.0,0.00013698,2]
[426742607,1782777048000,-500.0,0.00013698,2]
[426742666,1782777048000,-500.0,0.00013698,2]
[426742636,1782777048000,-557.35,0.00013698,2]
[426742622,1782777048000,-500.0,0.00013698,2]
[426742639,1782777048000,-500.0,0.00013698,2]
[426742634,1782777048000,-557.35,0.00013698,2]
[426742633,1782777048000,-557.35,0.00013698,2]
[426742631,1782777048000,-557.35,0.00013698,2]
[426742627,1782777048000,-557.35,0.00013698,2]
[426742629,1782777048000,-557.35,0.00013698,2]
[426742619,1782777048000,-500.0,0.00013698,2]
[426742616,1782777048000,-500.0,0.00013698,2]
[426742618,1782777048000,-500.0,0.00013698,2]
[426742623,1782777048000,-500.0,0.00013698,2]
[426742621,1782777048000,-500.0,0.00013698,2]
[426742620,1782777048000,-500.0,0.00013698,2]
[426742694,1782777049000,-630.48,0.00013698,2]
[426742692,1782777049000,-630.48,0.00013698,2]
[426742690,1782777049000,-630.48,0.00013698,2]
[426742695,1782777049000,-630.48,0.00013698,2]
[426742697,1782777049000,-630.48,0.00013698,2]
[426742693,1782777049000,-630.48,0.00013698,2]
[426742691,1782777049000,-630.48,0.00013698,2]
[426742696,1782777049000,-630.48,0.00013698,2]
[426742698,1782777049000,-630.48,0.00013698,2]
[426742703,1782777049000,-546.01,0.00013698,2]
[426742700,1782777049000,-630.48,0.00013698,2]
[426742704,1782777049000,-546.01,0.00013698,2]
[426742709,1782777049000,-546.01,0.00013698,2]
[426742701,1782777049000,-630.48,0.00013698,2]
[426742702,1782777049000,-546.01,0.00013698,2]
[426742705,1782777049000,-546.01,0.00013698,2]
[426742708,1782777049000,-546.01,0.00013698,2]
[426742689,1782777049000,-500.0,0.00013698,2]
[426742707,1782777049000,-546.01,0.00013698,2]
[426742699,1782777049000,-630.48,0.00013698,2]
[426742686,1782777049000,-500.0,0.00013698,2]
[426742671,1782777049000,-500.0,0.00013698,2]
[426742683,1782777049000,-500.0,0.00013698,2]
[426742706,1782777049000,-546.01,0.00013698,2]
[426742670,1782777049000,-500.0,0.00013698,2]
[426742669,1782777049000,-500.0,0.00013698,2]
[426742668,1782777049000,-500.0,0.00013698,2]
[426742675,1782777049000,-500.0,0.00013698,2]
[426742667,1782777049000,-500.0,0.00013698,2]
[426742672,1782777049000,-500.0,0.00013698,2]
[426742676,1782777049000,-500.0,0.00013698,2]
[426742674,1782777049000,-500.0,0.00013698,2]
[426742673,1782777049000,-500.0,0.00013698,2]
[426742678,1782777049000,-500.0,0.00013698,2]
[426742677,1782777049000,-500.0,0.00013698,2]
[426742680,1782777049000,-500.0,0.00013698,2]
[426742679,1782777049000,-500.0,0.00013698,2]
[426742682,1782777049000,-500.0,0.00013698,2]
[426742684,1782777049000,-500.0,0.00013698,2]
[426742681,1782777049000,-500.0,0.00013698,2]
[426742687,1782777049000,-500.0,0.00013698,2]
[426742685,1782777049000,-500.0,0.00013698,2]
[426742688,1782777049000,-500.0,0.00013698,2]
[426742711,1782777049000,-546.01,0.00013698,2]
[426742715,1782777049000,-500.0,0.00013698,2]
[426742712,1782777049000,-546.01,0.00013698,2]
[426742737,1782777049000,-500.0,0.00013698,2]
[426742740,1782777049000,-500.0,0.00013698,2]
[426742741,1782777049000,-500.0,0.00013698,2]
[426742738,1782777049000,-500.0,0.00013698,2]
[426742739,1782777049000,-500.0,0.00013698,2]
[426742742,1782777049000,-500.0,0.00013698,2]
[426742744,1782777049000,-500.0,0.00013698,2]
[426742743,1782777049000,-500.0,0.00013698,2]
[426742754,1782777049000,-500.0,0.00013698,2]
[426742755,1782777049000,-504.84673108,0.00013698,2]
[426742746,1782777049000,-500.0,0.00013698,2]
[426742747,1782777049000,-500.0,0.00013698,2]
[426742750,1782777049000,-500.0,0.00013698,2]
[426742748,1782777049000,-500.0,0.00013698,2]
[426742753,1782777049000,-500.0,0.00013698,2]
[426742749,1782777049000,-500.0,0.00013698,2]
[426742751,1782777049000,-500.0,0.00013698,2]
[426742710,1782777049000,-546.01,0.00013698,2]
[426742752,1782777049000,-500.0,0.00013698,2]
[426742735,1782777049000,-500.0,0.00013698,2]
[426742736,1782777049000,-500.0,0.00013698,2]
[426742745,1782777049000,-534.63292639,0.00013698,2]
[426742726,1782777049000,-500.0,0.00013698,2]
[426742714,1782777049000,-500.0,0.00013698,2]
[426742734,1782777049000,-500.0,0.00013698,2]
[426742713,1782777049000,-546.01,0.00013698,2]
[426742719,1782777049000,-500.0,0.00013698,2]
[426742720,1782777049000,-500.0,0.00013698,2]
[426742716,1782777049000,-500.0,0.00013698,2]
[426742717,1782777049000,-500.0,0.00013698,2]
[426742721,1782777049000,-500.0,0.00013698,2]
[426742722,1782777049000,-500.0,0.00013698,2]
[426742718,1782777049000,-500.0,0.00013698,2]
[426742723,1782777049000,-500.0,0.00013698,2]
[426742725,1782777049000,-500.0,0.00013698,2]
[426742731,1782777049000,-500.0,0.00013698,2]
[426742730,1782777049000,-500.0,0.00013698,2]
[426742732,1782777049000,-500.0,0.00013698,2]
[426742728,1782777049000,-500.0,0.00013698,2]
[426742729,1782777049000,-500.0,0.00013698,2]
[426742727,1782777049000,-500.0,0.00013698,2]
[426742724,1782777049000,-500.0,0.00013698,2]
[426742733,1782777049000,-500.0,0.00013698,2]
[426742795,1782777050000,-500.0,0.0001385,2]
[426742796,1782777050000,-424.12596773,0.00013895,2]
[426742794,1782777050000,-187.44508518,0.00013839,10]
[426742793,1782777050000,-187.08799306,0.00013839,7]
[426742787,1782777050000,-150.0,0.00013839,7]
[426742798,1782777050000,-500.0,0.00013895,2]
[426742788,1782777050000,-150.0,0.00013839,7]
[426742784,1782777050000,-150.0,0.00013839,7]
[426742799,1782777050000,-13303.26580193,0.00013896,2]
[426742782,1782777050000,-150.0,0.00013839,7]
[426742790,1782777050000,-150.0,0.00013839,7]
[426742789,1782777050000,-150.0,0.00013839,7]
[426742803,1782777050000,-150.0,0.00014009,7]